fUSD/lending_fUSD_20240222
["ID","MTS","AMOUNT","RATE_DAILY","PERIOD"]
[314821121,1708567888387,-500.0,0.00036438,2]
[314821122,1708567888404,-1205.8,0.00036438,2]
[314821123,1708567888420,-500.0,0.00036438,2]
[314821124,1708567888439,-500.0,0.00036438,2]
[314821125,1708567888455,-500.0,0.00036438,2]
[314821126,1708567888477,-500.0,0.00036438,2]
[314821127,1708567888494,-271.32707127,0.00036438,2]
[314821128,1708567888514,-500.0,0.00036438,2]
[314821129,1708567888533,-500.0,0.00036438,2]
[314821130,1708567888546,-500.0,0.00036438,2]
[314821131,1708567888563,-500.0,0.00036438,2]
[314821132,1708567888579,-784.63,0.00036438,2]
[314821133,1708567888593,-500.0,0.00036438,2]
[314821134,1708567888609,-554.28,0.00036438,2]
[314821135,1708567888629,-516.98513349,0.00036438,2]
[314821136,1708567888644,-501.00139738,0.00036438,2]
[314821137,1708567888658,-500.0,0.00036438,2]
[314821138,1708567888674,-518.48209018,0.00036438,2]
[314821139,1708567888688,-500.0,0.00036438,2]
[314821140,1708567888703,-500.0,0.00036438,2]
[314821141,1708567888717,-500.0,0.00036438,2]
[314821142,1708567888731,-563.72655031,0.00036438,2]
[314821143,1708567888745,-500.0,0.00036438,2]
[314821144,1708567888759,-531.60958934,0.00036438,2]
[314821145,1708567888774,-500.0,0.00036438,2]
[314821146,1708567888788,-680.42,0.00036438,2]
[314821147,1708567888803,-500.0,0.00036438,2]
[314821148,1708567888817,-500.0,0.00036438,2]
[314821149,1708567888832,-500.0,0.00036438,2]
[314821150,1708567888847,-500.0,0.00036438,2]
[314821151,1708567888861,-500.0,0.00036438,2]
[314821152,1708567888876,-500.0,0.00036438,2]
[314821153,1708567888891,-500.0,0.00036438,2]
[314821154,1708567888906,-500.0,0.00036438,2]
[314821155,1708567888920,-500.0,0.00036438,2]
[314821156,1708567888935,-500.0,0.00036438,2]
[314821157,1708567888950,-500.0,0.00036438,2]
[314821158,1708567888965,-500.0,0.00036438,2]
[314821159,1708567888979,-500.0,0.00036438,2]
[314821160,1708567888994,-500.0,0.00036438,2]
[314821161,1708567889009,-500.0,0.00036438,2]
[314821162,1708567889023,-500.0,0.00036438,2]
[314821163,1708567889038,-512.10422333,0.00036438,2]
[314821164,1708567889052,-500.0,0.00036438,2]
[314821165,1708567889066,-500.0,0.00036438,2]
[314821166,1708567889081,-500.0,0.00036438,2]
[314821167,1708567889095,-500.0,0.00036438,2]
[314821168,1708567889111,-500.0,0.00036438,2]
[314821169,1708567889125,-500.0,0.00036438,2]
[314821170,1708567889140,-500.0,0.00036438,2]
[314821171,1708567889154,-547.84,0.00036438,2]
[314821172,1708567889168,-500.0,0.00036438,2]
[314821173,1708567889182,-500.0,0.00036438,2]
[314821174,1708567889198,-507.00487745,0.00036438,2]
[314821175,1708567889212,-511.09391584,0.00036438,2]
[314821176,1708567889226,-500.0,0.00036438,2]
[314821177,1708567889239,-500.0,0.00036438,2]
[314821178,1708567889254,-500.0,0.00036438,2]
[314821179,1708567889268,-500.0,0.00036438,2]
[314821180,1708567889282,-551.77,0.00036438,2]
[314821181,1708567889297,-500.0,0.00036438,2]
[314821182,1708567889311,-500.77,0.00036438,2]
[314821183,1708567889325,-500.0,0.00036438,2]
[314821184,1708567889341,-500.0,0.00036438,2]
[314821185,1708567889356,-513.66176972,0.00036438,2]
[314821186,1708567889370,-500.0,0.00036438,2]
[314821187,1708567889385,-500.0,0.00036438,2]
[314821188,1708567889401,-509.73787555,0.00036438,2]
[314821189,1708567889417,-500.0,0.00036438,2]
[314821190,1708567889432,-1052.38,0.00036438,2]
[314821191,1708567889446,-500.0,0.00036438,2]
[314821192,1708567889465,-500.0,0.00036438,2]
[314821193,1708567889484,-500.0,0.00036438,2]
[314821194,1708567889499,-500.0,0.00036438,2]
[314821195,1708567889515,-960.38,0.00036438,2]
[314821196,1708567889530,-500.0,0.00036438,2]
[314821197,1708567889546,-500.0,0.00036438,2]
[314821198,1708567889561,-500.0,0.00036438,2]
[314821199,1708567889576,-500.0,0.00036438,2]
[314821200,1708567889590,-374.47719534,0.00036438,2]
[314821201,1708567889606,-902.85,0.00036438,2]
[314821202,1708567889620,-1831.45,0.00036438,2]
[314821203,1708567889635,-500.0,0.00036438,2]
[314821204,1708567889649,-500.0,0.00036438,2]
[314821205,1708567889663,-500.0,0.00036438,2]
[314821206,1708567889678,-500.0,0.00036438,2]
[314821207,1708567889691,-500.0,0.00036438,2]
[314821208,1708567889707,-500.0,0.00036438,2]
[314821209,1708567889720,-500.0,0.00036438,2]
[314821210,1708567889730,-570.75,0.00036438,2]
[314821211,1708567889739,-500.0,0.00036438,2]
[314821212,1708567889748,-500.0,0.00036438,2]
[314821213,1708567889757,-500.0,0.00036438,2]
[314821214,1708567889766,-1248.93,0.00036438,2]
[314821215,1708567889776,-500.0,0.00036438,2]
[314821216,1708567889785,-500.0,0.00036438,2]
[314821217,1708567889794,-977.51,0.00036438,2]
[314821218,1708567889803,-500.0,0.00036438,2]
[314821219,1708567889813,-500.0,0.00036438,2]
[314821220,1708567889822,-500.0,0.00036438,2]
[314821221,1708567889832,-500.0,0.00036438,2]
[314821222,1708567889841,-508.58733521,0.00036438,2]
[314821223,1708567889851,-500.0,0.00036438,2]
[314821224,1708567889861,-901.91,0.00036438,2]
[314821225,1708567889870,-860.22,0.00036438,2]
[314821226,1708567889879,-500.0,0.00036438,2]
[314821227,1708567889889,-500.0,0.00036438,2]
[314821228,1708567889898,-500.0,0.00036438,2]
[314821229,1708567889908,-500.0,0.00036438,2]
[314821230,1708567889918,-738.68,0.00036438,2]
[314821231,1708567889927,-500.0,0.00036438,2]
[314821232,1708567889937,-250.0,0.00036438,2]
[314821233,1708567889946,-500.0,0.00036438,2]
[314821234,1708567889955,-500.0,0.00036438,2]
[314821235,1708567889965,-774.72,0.00036438,2]
[314821236,1708567889974,-500.0,0.00036438,2]
[314821237,1708567889984,-500.0,0.00036438,2]
[314821238,1708567889994,-500.0,0.00036438,2]
[314821239,1708567890003,-500.0,0.00036438,2]
[314821240,1708567890013,-985.31,0.00036438,2]
[314821241,1708567890022,-500.0,0.00036438,2]
[314821242,1708567890031,-500.0,0.00036438,2]
[314821243,1708567890041,-500.0,0.00036438,2]
[314821244,1708567890050,-500.0,0.00036438,2]
[314821245,1708567890060,-500.0,0.00036438,2]
[314821246,1708567890069,-500.0,0.00036438,2]
[314821247,1708567890079,-500.0,0.00036438,2]
[314821248,1708567890088,-500.0,0.00036438,2]
[314821249,1708567890100,-801.33,0.00036438,2]
[314821250,1708567890109,-500.0,0.00036438,2]
[314821251,1708567890562,-500.0,0.00036438,2]
[314821252,1708567890585,-918.04,0.00036438,2]
[314821253,1708567890608,-500.0,0.00036438,2]
[314821254,1708567890637,-500.0,0.00036438,2]
[314821255,1708567890658,-863.39,0.00036438,2]
[314821256,1708567890669,-500.0,0.00036438,2]
[314821257,1708567890679,-500.0,0.00036438,2]
[314821258,1708567890688,-500.0,0.00036438,2]
[314821259,1708567890697,-500.0,0.00036438,2]
[314821260,1708567890707,-512.27158611,0.00036438,2]
[314821261,1708567890716,-500.0,0.00036438,2]
[314821262,1708567890725,-500.0,0.00036438,2]
[314821263,1708567890733,-500.0,0.00036438,2]
[314821264,1708567890742,-500.0,0.00036438,2]
[314821265,1708567890751,-500.0,0.00036438,2]
[314821266,1708567890760,-500.0,0.00036438,2]
[314821267,1708567890769,-622.15,0.00036438,2]
[314821268,1708567890778,-500.0,0.00036438,2]
[314821269,1708567890787,-500.0,0.00036438,2]
[314821270,1708567890796,-500.0,0.00036438,2]
[314821271,1708567890805,-500.0,0.00036438,2]
[314821272,1708567890814,-500.0,0.00036438,2]
[314821273,1708567890824,-278.67651243,0.00036438,2]
[314821274,1708567890833,-594.77,0.00036438,2]
[314821275,1708567890843,-500.0,0.00036438,2]
[314821276,1708567890853,-500.0,0.00036438,2]
[314821277,1708567890862,-500.0,0.00036438,2]
[314821278,1708567890871,-1322.67,0.00036438,2]
[314821279,1708567890881,-500.0,0.00036438,2]
[314821280,1708567890890,-770.76,0.00036438,2]
[314821281,1708567890899,-500.0,0.00036438,2]
[314821282,1708567890909,-1539.81,0.00036438,2]
[314821283,1708567890918,-500.0,0.00036438,2]
[314821284,1708567890927,-500.0,0.00036438,2]
[314821285,1708567890935,-680.73,0.00036438,2]
[314821286,1708567890944,-500.0,0.00036438,2]
[314821287,1708567890953,-500.0,0.00036438,2]
[314821288,1708567890963,-500.0,0.00036438,2]
[314821289,1708567890971,-852.93,0.00036438,2]
[314821290,1708567890980,-500.79,0.00036438,2]
[314821291,1708567890990,-520.65,0.00036438,2]
[314821292,1708567890998,-500.0,0.00036438,2]
[314821293,1708567891007,-558.23,0.00036438,2]
[314821294,1708567891016,-500.0,0.00036438,2]
[314821295,1708567891025,-590.37,0.00036438,2]
[314821296,1708567891034,-1546.74,0.00036438,2]
[314821297,1708567891043,-500.0,0.00036438,2]
[314821298,1708567891052,-189.39079873,0.00036438,2]
[314821299,1708567891061,-500.0,0.00036438,2]
[314821300,1708567891071,-500.0,0.00036438,2]
[314821301,1708567891079,-823.83,0.00036438,2]
[314821302,1708567891088,-500.0,0.00036438,2]
[314821303,1708567891097,-818.15,0.00036438,2]
[314821304,1708567891108,-500.0,0.00036438,2]
[314821305,1708567891117,-500.0,0.00036438,2]
[314821306,1708567891126,-1293.6,0.00036438,2]
[314821307,1708567891136,-500.0,0.00036438,2]
[314821308,1708567891145,-500.0,0.00036438,2]
[314821309,1708567891153,-500.0,0.00036438,2]
[314821310,1708567891162,-610.76,0.00036438,2]
[314821311,1708567891171,-615.78,0.00036438,2]
[314821312,1708567891180,-501.85,0.00036438,2]
[314821313,1708567891189,-955.64,0.00036438,2]
[314821314,1708567891199,-348.39058455,0.00036438,2]
[314821315,1708567891208,-500.0,0.00036438,2]
[314821316,1708567891217,-655.35,0.00036438,2]
[314821317,1708567891227,-837.66,0.00036438,2]
[314821318,1708567891237,-708.51,0.00036438,2]
[314821319,1708567891246,-500.0,0.00036438,2]
[314821320,1708567891255,-507.8836511,0.00036438,2]
[314821321,1708567891264,-500.0,0.00036438,2]
[314821322,1708567891273,-824.29,0.00036438,2]
[314821323,1708567891282,-161.24193541,0.00036438,2]
[314821324,1708567891291,-391.51201518,0.00036438,2]
[314821325,1708567891301,-99.04161189,0.00036438,2]
[314821326,1708567891340,-400.95838811,0.00036438,2]
[314821327,1708567891349,-500.0,0.00036438,2]
[314821328,1708567891359,-1000.0,0.00036438,7]
[314821329,1708567891367,-1284.45,0.00036438,2]
[314821330,1708567891377,-690.94,0.00036438,2]
[314821331,1708567891386,-500.0,0.00036438,2]
[314821332,1708567891395,-500.0,0.00036438,2]
[314821333,1708567891405,-500.0,0.00036438,2]
[314821334,1708567891414,-590.44,0.00036438,2]
[314821335,1708567891423,-548.96177456,0.00036438,2]
[314821336,1708567891433,-500.0,0.00036438,2]
[314821337,1708567891442,-500.0,0.00036438,2]
[314821338,1708567891451,-500.0,0.00036438,2]
[314821339,1708567891462,-508.03,0.00036438,2]
[314821340,1708567891473,-680.8,0.00036438,2]
[314821341,1708567891482,-500.0,0.00036438,2]
[314821342,1708567891492,-1181.64,0.00036438,2]
[314821343,1708567891502,-500.0,0.00036438,2]
[314821344,1708567891511,-500.0,0.00036438,2]
[314821345,1708567891521,-858.85,0.00036438,2]
[314821346,1708567891530,-889.02,0.00036438,2]
[314821347,1708567891539,-500.0,0.00036438,2]
[314821348,1708567891549,-519.91396627,0.00036438,2]
[314821349,1708567891559,-1225.79,0.00036438,2]
[314821350,1708567891568,-957.74,0.00036438,2]
[314821351,1708567891577,-500.0,0.00036438,2]
[314821352,1708567891587,-500.0,0.00036438,2]
[314821353,1708567891596,-161.85052097,0.00036438,2]
[314821354,1708567891606,-500.0,0.00036438,2]
[314821355,1708567891616,-568.54,0.00036438,2]
[314821356,1708567891625,-500.0,0.00036438,2]
[314821357,1708567891634,-500.0,0.00036438,2]
[314821358,1708567891644,-500.0,0.00036438,2]
[314821359,1708567891653,-500.0,0.00036438,2]
[314821360,1708567891662,-500.0,0.00036438,2]
[314821361,1708567891671,-525.6,0.00036438,2]
[314821362,1708567891680,-500.0,0.00036438,2]
[314821363,1708567891689,-500.0,0.00036438,2]
[314821364,1708567891699,-609.81,0.00036438,2]
[314821365,1708567891708,-500.0,0.00036438,2]
[314821366,1708567891718,-500.0,0.00036438,2]
[314821367,1708567891727,-500.0,0.00036438,2]
[314821368,1708567891737,-565.76583938,0.00036438,2]
[314821369,1708567891746,-558.22,0.00036438,2]
[314821370,1708567891755,-500.0,0.00036438,2]
[314821371,1708567891765,-623.15,0.00036438,2]
[314821372,1708567891774,-836.57,0.00036438,2]
[314821373,1708567891783,-500.0,0.00036438,2]
[314821374,1708567891792,-757.49,0.00036438,2]
[314821375,1708567891801,-500.0,0.00036438,2]
[314821376,1708567891810,-500.0,0.00036438,2]
[314821377,1708567891819,-537.3747195,0.00036438,2]
[314821378,1708567891829,-652.51,0.00036438,2]
[314821379,1708567891838,-500.0,0.00036438,2]
[314821380,1708567891848,-500.0,0.00036438,2]
[314821381,1708567891858,-608.94,0.00036438,2]
[314821382,1708567891867,-500.0,0.00036438,2]
[314821383,1708567891877,-500.0,0.00036438,2]
[314821384,1708567891886,-500.0,0.00036438,2]
[314821385,1708567891895,-500.0,0.00036438,2]
[314821386,1708567891905,-603.06,0.00036438,2]
[314821387,1708567891914,-500.0,0.00036438,2]
[314821388,1708567891923,-500.0,0.00036438,2]
[314821389,1708567891932,-500.0,0.00036438,2]
[314821390,1708567891940,-500.0,0.00036438,2]
[314821391,1708567891949,-500.0,0.00036438,2]
[314821392,1708567891959,-261.02550805,0.00036438,2]
[314821393,1708567891968,-500.0,0.00036438,2]
[314821394,1708567891976,-523.05,0.00036438,2]
[314821395,1708567891985,-664.3,0.00036438,2]
[314821396,1708567891994,-1080.18,0.00036438,2]
[314821397,1708567892004,-500.0,0.00036438,2]
[314821398,1708567892013,-500.0,0.00036438,2]
[314821399,1708567892022,-500.0,0.00036438,2]
[314821400,1708567892031,-500.0,0.00036438,2]
[314821401,1708567892040,-550.61466136,0.00036438,2]
[314821402,1708567892049,-500.0,0.00036438,2]
[314821403,1708567892058,-500.0,0.00036438,2]
[314821404,1708567892067,-500.0,0.00036438,2]
[314821405,1708567892076,-500.0,0.00036438,2]
[314821406,1708567892086,-500.0,0.00036438,2]
[314821407,1708567892095,-500.0,0.00036438,2]
[314821408,1708567892105,-500.0,0.00036438,2]
[314821409,1708567892114,-500.0,0.00036438,2]
[314821410,1708567892123,-500.0,0.00036438,2]
[314821411,1708567892133,-1557.65,0.00036438,2]
[314821412,1708567892142,-1105.88,0.00036438,2]
[314821413,1708567892151,-519.40997166,0.00036438,2]
[314821414,1708567892160,-500.0,0.00036438,2]
[314821415,1708567892169,-500.0,0.00036438,2]
[314821416,1708567892178,-500.0,0.00036438,2]
[314821417,1708567892187,-1046.78,0.00036438,2]
[314821418,1708567892196,-500.0,0.00036438,2]
[314821419,1708567892205,-1030.93,0.00036438,2]
[314821420,1708567892214,-500.0,0.00036438,2]
[314821421,1708567892223,-500.0,0.00036438,2]
[314821422,1708567892232,-500.0,0.00036438,2]
[314821423,1708567892241,-500.0,0.00036438,2]
[314821424,1708567892251,-500.0,0.00036438,2]
[314821425,1708567892260,-602.81,0.00036438,2]
[314821426,1708567892269,-910.54,0.00036438,2]
[314821427,1708567892278,-558.07,0.00036438,2]
[314821428,1708567892287,-500.0,0.00036438,2]
[314821429,1708567892297,-500.0,0.00036438,2]
[314821430,1708567892306,-500.0,0.00036438,2]
[314821431,1708567892315,-515.39749571,0.00036438,2]
[314821432,1708567892324,-1140.82,0.00036438,2]
[314821433,1708567892333,-500.0,0.00036438,2]
[314821434,1708567892342,-500.0,0.00036438,2]
[314821435,1708567892352,-500.0,0.00036438,2]
[314821436,1708567892361,-505.12346844,0.00036438,2]
[314821437,1708567892370,-500.0,0.00036438,2]
[314821438,1708567892379,-500.0,0.00036438,2]
[314821439,1708567892388,-500.0,0.00036438,2]
[314821440,1708567892398,-708.05,0.00036438,2]
[314821441,1708567892409,-500.0,0.00036438,2]
[314821442,1708567892418,-810.49,0.00036438,2]
[314821443,1708567892427,-515.93,0.00036438,2]
[314821444,1708567892436,-500.0,0.00036438,2]
[314821445,1708567892446,-235.47763201,0.00036438,2]
[314821446,1708567892455,-500.0,0.00036438,2]
[314821447,1708567892468,-500.0,0.00036438,2]
[314821448,1708567892477,-500.0,0.00036438,2]
[314821449,1708567892487,-500.0,0.00036438,2]
[314821450,1708567892496,-500.0,0.00036438,2]
[314821451,1708567892506,-500.0,0.00036438,2]
[314821452,1708567892515,-500.0,0.00036438,2]
[314821453,1708567892524,-500.0,0.00036438,2]
[314821454,1708567892534,-500.0,0.00036438,2]
[314821455,1708567892544,-500.0,0.00036438,2]
[314821456,1708567892554,-570.87,0.00036438,2]
[314821457,1708567892563,-500.0,0.00036438,2]
[314821458,1708567892572,-500.0,0.00036438,2]
[314821459,1708567892581,-500.0,0.00036438,2]
[314821460,1708567892591,-500.0,0.00036438,2]
[314821461,1708567892600,-500.0,0.00036438,2]
[314821462,1708567892609,-500.0,0.00036438,2]
[314821463,1708567892618,-500.0,0.00036438,2]
[314821464,1708567892627,-794.78,0.00036438,2]
[314821465,1708567892636,-500.0,0.00036438,2]
[314821466,1708567892646,-549.38,0.00036438,2]
[314821467,1708567892655,-486.64592102,0.00036438,2]
[314821468,1708567892664,-500.0,0.00036438,2]
[314821469,1708567892673,-500.0,0.00036438,2]
[314821470,1708567892683,-500.0,0.00036438,2]
[314821471,1708567892692,-500.0,0.00036438,2]
[314821472,1708567892701,-513.52228649,0.00036438,2]
[314821473,1708567892710,-221.52520266,0.00036438,2]
[314821474,1708567892719,-500.0,0.00036438,2]
[314821475,1708567892729,-619.07,0.00036438,2]
[314821476,1708567892738,-500.0,0.00036438,2]
[314821477,1708567892747,-500.0,0.00036438,2]
[314821478,1708567892756,-553.93,0.00036438,2]
[314821479,1708567892765,-848.14,0.00036438,2]
[314821480,1708567892774,-515.15327767,0.00036438,2]
[314821481,1708567892783,-586.84,0.00036438,2]
[314821482,1708567892792,-500.0,0.00036438,2]
[314821483,1708567892801,-500.0,0.00036438,2]
[314821484,1708567892810,-500.0,0.00036438,2]
[314821485,1708567892819,-500.0,0.00036438,2]
[314821486,1708567892828,-500.0,0.00036438,2]
[314821487,1708567892837,-1000.0,0.00036438,7]
[314821488,1708567892846,-500.0,0.00036438,2]
[314821489,1708567892855,-500.0,0.00036438,2]
[314821490,1708567892864,-500.0,0.00036438,2]
[314821491,1708567892873,-859.65,0.00036438,2]
[314821492,1708567892882,-500.0,0.00036438,2]
[314821493,1708567892891,-500.0,0.00036438,2]
[314821494,1708567892901,-688.86,0.00036438,2]
[314821495,1708567892910,-500.0,0.00036438,2]
[314821496,1708567892919,-747.96,0.00036438,2]
[314821497,1708567892928,-212.16392658,0.00036438,2]
[314821498,1708567892937,-872.84,0.00036438,2]
[314821499,1708567892946,-500.0,0.00036438,2]
[314821500,1708567892955,-1023.59,0.00036438,2]
[314821501,1708567892964,-534.21857247,0.00036438,2]
[314821502,1708567892973,-840.11,0.00036438,2]
[314821503,1708567892982,-500.0,0.00036438,2]
[314821504,1708567892991,-641.26,0.00036438,2]
[314821505,1708567893000,-500.0,0.00036438,2]
[314821506,1708567893009,-521.6,0.00036438,2]
[314821507,1708567893018,-500.0,0.00036438,2]
[314821508,1708567893027,-500.0,0.00036438,2]
[314821509,1708567893037,-546.94,0.00036438,2]
[314821510,1708567893046,-748.23,0.00036438,2]
[314821511,1708567893055,-500.0,0.00036438,2]
[314821512,1708567893065,-500.0,0.00036438,2]
[314821513,1708567893074,-500.0,0.00036438,2]
[314821514,1708567893083,-500.0,0.00036438,2]
[314821515,1708567893092,-500.0,0.00036438,2]
[314821516,1708567893102,-524.01861398,0.00036438,2]
[314821517,1708567893111,-509.67202073,0.00036438,2]
[314821518,1708567893119,-500.0,0.00036438,2]
[314821519,1708567893129,-500.0,0.00036438,2]
[314821520,1708567893138,-527.84,0.00036438,2]
[314821521,1708567893148,-500.0,0.00036438,2]
[314821522,1708567893158,-579.05,0.00036438,2]
[314821523,1708567893168,-500.0,0.00036438,2]
[314821524,1708567893177,-1288.39,0.00036438,2]
[314821525,1708567893187,-679.7,0.00036438,2]
[314821526,1708567893196,-504.33615878,0.00036438,2]
[314821527,1708567893206,-1254.24,0.00036438,2]
[314821528,1708567893216,-500.0,0.00036438,2]
[314821529,1708567893225,-500.0,0.00036438,2]
[314821530,1708567893235,-500.0,0.00036438,2]
[314821531,1708567893244,-739.08,0.00036438,2]
[314821532,1708567893253,-500.0,0.00036438,2]
[314821533,1708567893262,-350.44183108,0.00036438,2]
[314821534,1708567893271,-500.0,0.00036438,2]
[314821535,1708567893281,-510.00375235,0.00036438,2]
[314821536,1708567893290,-1000.0,0.00036438,7]
[314821537,1708567893298,-500.0,0.00036438,2]
[314821538,1708567893308,-1522.9,0.00036438,2]
[314821539,1708567893317,-500.0,0.00036438,2]
[314821540,1708567893326,-914.95,0.00036438,2]
[314821541,1708567893335,-500.0,0.00036438,2]
[314821542,1708567893345,-500.0,0.00036438,2]
[314821543,1708567893355,-500.0,0.00036438,2]
[314821544,1708567893364,-500.0,0.00036438,2]
[314821545,1708567893373,-500.0,0.00036438,2]
[314821546,1708567893383,-519.70226747,0.00036438,2]
[314821547,1708567893392,-500.0,0.00036438,2]
[314821548,1708567893402,-500.0,0.00036438,2]
[314821549,1708567893412,-500.0,0.00036438,2]
[314821550,1708567893421,-500.0,0.00036438,2]
[314821551,1708567893431,-500.0,0.00036438,2]
[314821552,1708567893441,-500.0,0.00036438,2]
[314821553,1708567893450,-500.0,0.00036438,2]
[314821554,1708567893462,-969.75,0.00036438,2]
[314821555,1708567893475,-1000.0,0.00036438,7]
[314821556,1708567893484,-998.09,0.00036438,2]
[314821557,1708567893494,-690.5,0.00036438,2]
[314821558,1708567893504,-708.18,0.00036438,2]
[314821559,1708567893514,-533.99,0.00036438,2]
[314821560,1708567893523,-500.0,0.00036438,2]
[314821561,1708567893533,-1393.88,0.00036438,2]
[314821562,1708567893544,-614.0,0.00036438,2]
[314821563,1708567893554,-500.0,0.00036438,2]
[314821564,1708567893564,-1030.56,0.00036438,2]
[314821565,1708567893574,-500.0,0.00036438,2]
[314821566,1708567893585,-914.66,0.00036438,2]
[314821567,1708567893594,-500.0,0.00036438,2]
[314821568,1708567893604,-500.0,0.00036438,2]
[314821569,1708567893613,-602.51,0.00036438,2]
[314821570,1708567893623,-500.0,0.00036438,2]
[314821571,1708567893633,-500.0,0.00036438,2]
[314821572,1708567893643,-500.0,0.00036438,2]
[314821573,1708567893652,-500.0,0.00036438,2]
[314821574,1708567893662,-1150.85,0.00036438,2]
[314821575,1708567893672,-500.0,0.00036438,2]
[314821576,1708567893682,-500.0,0.00036438,2]
[314821577,1708567893692,-871.1,0.00036438,2]
[314821578,1708567893701,-500.0,0.00036438,2]
[314821579,1708567893711,-363.84786074,0.00036438,2]
[314821580,1708567893721,-500.0,0.00036438,2]
[314821581,1708567893731,-500.0,0.00036438,2]
[314821582,1708567893742,-500.0,0.00036438,2]
[314821583,1708567893752,-500.0,0.00036438,2]
[314821584,1708567893948,-500.0,0.00036438,2]
[314821585,1708567893973,-500.0,0.00036438,2]
[314821586,1708567893983,-500.0,0.00036438,2]
[314821587,1708567893994,-774.38,0.00036438,2]
[314821588,1708567894003,-930.24,0.00036438,2]
[314821589,1708567894013,-500.0,0.00036438,2]
[314821590,1708567894022,-522.50317673,0.00036438,2]
[314821591,1708567894032,-500.0,0.00036438,2]
[314821592,1708567894041,-500.0,0.00036438,2]
[314821593,1708567894050,-500.0,0.00036438,2]
[314821594,1708567894060,-609.83,0.00036438,2]
[314821595,1708567894069,-1492.93,0.00036438,2]
[314821596,1708567894079,-500.0,0.00036438,2]
[314821597,1708567894089,-500.0,0.00036438,2]
[314821598,1708567894099,-515.02,0.00036438,2]
[314821599,1708567894111,-500.0,0.00036438,2]
[314821600,1708567894120,-1285.49,0.00036438,2]
[314821601,1708567894130,-510.6765225,0.00036438,2]
[314821602,1708567894140,-500.0,0.00036438,2]
[314821603,1708567894149,-500.0,0.00036438,2]
[314821604,1708567894159,-1740.36,0.00036438,2]
[314821605,1708567894168,-500.0,0.00036438,2]
[314821606,1708567894177,-548.7,0.00036438,2]
[314821607,1708567894186,-649.26,0.00036438,2]
[314821608,1708567894196,-1416.3,0.00036438,2]
[314821609,1708567894205,-500.0,0.00036438,2]
[314821610,1708567894215,-500.0,0.00036438,2]
[314821611,1708567894224,-500.0,0.00036438,2]
[314821612,1708567894234,-500.0,0.00036438,2]
[314821613,1708567894243,-500.0,0.00036438,2]
[314821614,1708567894253,-500.0,0.00036438,2]
[314821615,1708567894262,-1033.35,0.00036438,2]
[314821616,1708567894273,-500.0,0.00036438,2]
[314821617,1708567894282,-500.0,0.00036438,2]
[314821618,1708567894292,-500.0,0.00036438,2]
[314821619,1708567894302,-500.0,0.00036438,2]
[314821620,1708567894311,-616.42669988,0.00036438,2]